bitfinex/quotes_BTCUSD_20251124
["timestamp","ask_amount","ask_price","bid_price","bid_amount"]
[1763998123176,0.02167186,86306.0,86305.0,0.03061362]
[1763998123377,0.02167186,86306.0,86305.0,0.00744]
[1763998123616,0.04631186,86306.0,86303.0,0.00744]
[1763998123796,0.02464,86304.0,86279.0,0.10214326]
[1763998124114,0.02464,86304.0,86260.0,0.98925875]
[1763998124115,0.02167186,86303.0,86284.0,0.09270902]
[1763998124330,0.02167186,86302.0,86285.0,0.02298]
[1763998124534,0.02167186,86301.0,86284.0,0.09270902]
[1763998124741,0.02167186,86300.0,86286.0,0.02317873]
[1763998124959,0.323117,86304.0,86284.0,0.09270902]
[1763998124960,0.02167186,86299.0,86287.0,0.02317846]
[1763998125164,0.02167186,86298.0,86287.0,0.02317846]
[1763998125337,0.000117,86304.0,86284.0,0.09270902]
[1763998125338,0.02167186,86297.0,86284.0,0.09270902]
[1763998125541,0.02167186,86296.0,86285.0,0.01860955]
[1763998125747,0.02167186,86295.0,86287.0,0.01]
[1763998125946,0.02167186,86294.0,86288.0,0.02317819]
[1763998126155,0.02167186,86293.0,86288.0,0.02317819]
[1763998126346,0.02167186,86292.0,86290.0,0.01]
[1763998126672,0.00025514,86298.0,86292.0,0.01]
[1763998127006,0.02172266,86297.0,86293.0,0.02317685]
[1763998127216,0.00025514,86298.0,86280.0,0.01999998]
[1763998127217,0.0217226,86296.0,86280.0,1.00925873]
[1763998127418,0.02172249,86295.0,86280.0,0.98925875]
[1763998127631,0.00025514,86298.0,86280.0,0.98925875]
[1763998127632,0.02172249,86294.0,86282.0,0.01]
[1763998127809,0.02172249,86293.0,86282.0,0.01]
[1763998127961,0.00025514,86298.0,86280.0,0.98925875]
[1763998127962,0.00025514,86298.0,86292.0,0.09270902]
[1763998128169,0.00025514,86298.0,86296.0,0.01]
[1763998128170,0.02172487,86297.0,86296.0,0.01]
[1763998128373,0.02172487,86297.0,86296.0,0.04061604]
[1763998128583,0.00025514,86298.0,86297.0,0.01]
[1763998128788,0.02197749,86298.0,86297.0,0.01]
[1763998129214,0.00025514,86298.0,86292.0,0.09370902]
[1763998129535,0.00025514,86298.0,86293.0,0.00744]
[1763998129707,0.00025514,86298.0,86294.0,0.00744]
[1763998129708,0.02172109,86297.0,86294.0,0.00744]
[1763998129952,0.02172109,86296.0,86295.0,0.02317631]
[1763998130161,0.02172109,86296.0,86294.0,0.00744]
[1763998130393,0.02172109,86295.0,86294.0,0.00744]
[1763998130718,0.02172109,86295.0,86292.0,0.09270902]
[1763998131027,0.02172109,86294.0,86293.0,0.00744]
[1763998131428,0.02172109,86294.0,86293.0,0.00944]
[1763998131855,0.02172109,86294.0,86293.0,0.00744]
[1763998132058,0.02172109,86294.0,86293.0,0.00944]
[1763998133442,0.00025514,86298.0,86293.0,0.00944]
[1763998133639,0.00025514,86298.0,86297.0,0.09270902]
[1763998133841,0.0219776,86298.0,86297.0,0.11588479]
[1763998134430,0.0219776,86298.0,86296.0,0.00744]
[1763998134676,0.02172246,86297.0,86296.0,0.00744]
[1763998136141,0.02172246,86297.0,86285.0,0.02317899]
[1763998136298,0.02172246,86296.0,86286.0,0.00744]
[1763998136491,0.02172246,86295.0,86286.0,0.03061873]
[1763998136859,0.01855,86287.0,86286.0,0.00744]
[1763998137036,0.01855,86296.0,86286.0,0.00744]
[1763998137248,0.02172993,86295.0,86287.0,0.09270902]
[1763998137456,0.02172993,86294.0,86288.0,0.02317819]
[1763998137625,0.00025514,86298.0,86288.0,0.02317819]
[1763998137804,0.02173233,86297.0,86288.0,0.02317819]
[1763998138008,0.02173233,86296.0,86288.0,0.02317819]
[1763998138235,0.02173233,86295.0,86288.0,0.02317819]
[1763998138390,0.00025514,86298.0,86293.0,0.01]
[1763998138591,0.00025514,86298.0,86288.0,1.01243694]
[1763998138805,0.00025514,86298.0,86293.0,0.01]
[1763998139003,0.00025514,86298.0,86288.0,0.98925875]
[1763998139004,0.00025514,86298.0,86294.0,0.02317658]
[1763998140073,0.00025514,86298.0,86295.0,0.02198999]
[1763998140284,0.00025514,86298.0,86288.0,0.02362812]
[1763998140622,0.00025514,86298.0,86289.0,0.02222024]
[1763998140839,0.00025514,86298.0,86291.0,0.01]
[1763998141049,0.00025514,86298.0,86288.0,0.98925875]
[1763998141050,0.00025514,86298.0,86293.0,0.001]
[1763998141295,0.000117,86304.0,86303.0,0.01]
[1763998141490,0.03686,86349.0,86330.0,0.98925875]
[1763998141491,0.01818052,86349.0,86330.0,0.98925875]
[1763998141666,0.01818052,86349.0,86339.0,0.98925875]
[1763998141667,0.02172168,86348.0,86339.0,0.98925875]
[1763998141887,0.02172168,86347.0,86331.0,0.00744]
[1763998142094,0.323,86345.0,86330.0,0.00744]
[1763998142294,0.01855,86332.0,86310.0,0.14448452]
[1763998142498,0.01855,86332.0,86301.0,0.09270902]
[1763998142499,0.02170936,86331.0,86301.0,0.09270902]
[1763998142835,0.02170936,86330.0,86301.0,0.09270902]
[1763998143033,0.34470936,86329.0,86302.0,0.00744]
[1763998143239,0.34470936,86329.0,86284.0,0.10315881]
[1763998143240,0.02170936,86328.0,86284.0,0.10315881]
[1763998143460,0.09270902,86314.0,86276.0,0.10315881]
[1763998143689,0.04178,86288.0,86264.0,0.10315881]
[1763998143903,0.04178,86288.0,86270.0,0.00744]
[1763998144114,0.01855,86265.0,86250.0,0.5]
[1763998144328,0.03686,86264.0,86250.0,0.5]
[1763998144540,0.02323,86251.0,86250.0,0.5]
[1763998144732,0.02323,86251.0,86250.0,0.4622103]
[1763998144920,0.05210249,86258.0,86250.0,0.4622103]
[1763998145187,0.01247852,86252.0,86250.0,0.4622103]
[1763998145775,0.323,86256.0,86250.0,0.4622103]
[1763998145938,0.01256796,86264.0,86250.0,0.4622103]
[1763998146143,0.323,86268.0,86251.0,0.02318813]
[1763998146559,0.323,86268.0,86250.0,0.4622103]
[1763998146934,0.323,86268.0,86251.0,0.01980974]
[1763998147494,0.01855,86272.0,86254.0,0.09270902]
[1763998147667,0.01855,86272.0,86250.0,0.4622103]
[1763998148182,0.01855,86272.0,86254.0,0.09270902]
[1763998148382,0.01855,86272.0,86250.0,0.4622103]
[1763998148383,0.01855,86272.0,86255.0,0.02931449]
[1763998148584,0.323,86282.0,86256.0,0.02318679]
[1763998148784,0.09270902,86280.0,86256.0,0.02318679]
[1763998149994,0.01242168,86282.0,86256.0,0.02318679]
[1763998150248,0.323,86280.0,86257.0,0.01472]
[1763998150435,0.323,86280.0,86268.0,0.09270902]
[1763998150638,0.323,86280.0,86269.0,0.00744]
[1763998150816,0.323,86280.0,86255.0,0.09270902]
[1763998150817,0.03686,86279.0,86265.0,0.00744]
[1763998151383,0.323,86278.0,86265.0,0.00744]
[1763998152440,0.323,86276.0,86251.0,0.09270902]
[1763998152612,0.323,86276.0,86252.0,0.02000174]
[1763998152815,0.323,86276.0,86252.0,0.03262174]
[1763998153016,0.323,86276.0,86264.0,0.09270902]
[1763998153218,0.323,86276.0,86265.0,0.02318437]
[1763998153421,0.01244992,86289.0,86264.0,0.10014902]
[1763998153618,0.01244992,86289.0,86265.0,0.02115899]
[1763998155051,0.03492,86287.0,86265.0,0.02115899]
[1763998155252,0.03492,86287.0,86264.0,0.00744]
[1763998155462,0.34155,86288.0,86265.0,0.09270902]
[1763998155666,0.34155,86288.0,86266.0,0.01281712]
[1763998155869,0.34155,86288.0,86267.0,0.01839749]
[1763998156075,0.01855,86288.0,86268.0,0.01926899]
[1763998156280,0.01855,86288.0,86266.0,0.01190324]
[1763998156538,0.01855,86288.0,86267.0,0.01732162]
[1763998156972,0.01244992,86289.0,86268.0,0.012]
[1763998157100,0.01244992,86289.0,86269.0,0.02318329]
[1763998157309,0.323,86294.0,86269.0,0.02318329]
[1763998158274,0.323,86294.0,86266.0,0.02083948]
[1763998158483,0.0817719,86293.0,86266.0,0.02083948]
[1763998158807,0.01762,86267.0,86256.0,0.00744]
[1763998158929,0.323,86279.0,86256.0,0.00744]
[1763998159131,0.01762,86272.0,86256.0,0.00744]
[1763998159327,0.323,86279.0,86256.0,0.00744]
[1763998159328,0.01762,86276.0,86256.0,0.00744]
[1763998159736,0.323,86281.0,86264.0,0.09270902]
[1763998159985,0.323,86281.0,86265.0,0.02318437]
[1763998161208,0.03486,86285.0,86257.0,0.012]
[1763998161419,0.03486,86285.0,86258.0,0.01866073]
[1763998161864,0.00744,86287.0,86258.0,0.01866073]
[1763998161865,0.00744,86287.0,86264.0,0.09270902]
[1763998162069,0.323,86289.0,86286.0,0.012]
[1763998162246,0.01271073,86294.0,86274.0,0.00744]
[1763998162458,0.34155,86298.0,86274.0,0.00744]
[1763998162828,0.323,86289.0,86272.0,0.00744]
[1763998162995,0.01855,86298.0,86272.0,0.00744]
[1763998163205,0.03486,86288.0,86272.0,0.007557]
[1763998163966,0.0123731,86294.0,86272.0,0.007557]
[1763998164153,0.03486,86294.0,86272.0,0.007557]
[1763998164557,0.98925875,86290.0,86272.0,0.007557]
[1763998165735,0.01762,86273.0,86272.0,0.007557]
[1763998165937,0.03992,86273.0,86272.0,0.000117]
[1763998166078,0.07478,86273.0,86272.0,0.000117]
[1763998166756,0.323,86281.0,86272.0,0.000117]
[1763998166965,0.04700484,86294.0,86272.0,0.000117]
[1763998166966,0.01762,86284.0,86272.0,0.000117]
[1763998167171,0.0223,86273.0,86272.0,0.000117]
[1763998167591,0.05716,86273.0,86272.0,0.000117]
[1763998168271,2.46036169,86273.0,86272.0,0.000117]
[1763998168481,2.45390169,86273.0,86272.0,0.000117]
[1763998169656,2.45390645,86273.0,86272.0,0.000117]
[1763998173784,2.46475983,86273.0,86272.0,0.000117]
[1763998175336,0.36694396,86273.0,86272.0,0.000117]
[1763998175552,0.02164396,86273.0,86272.0,0.000117]
[1763998175964,0.07880396,86273.0,86272.0,0.000117]
[1763998176385,0.07980396,86273.0,86272.0,0.000117]
[1763998176806,0.07880396,86273.0,86272.0,0.000117]
[1763998177009,0.07980396,86273.0,86272.0,0.000117]
[1763998177847,0.04494396,86273.0,86272.0,0.000117]
[1763998178571,0.02264396,86273.0,86272.0,0.000117]
[1763998178834,0.001,86273.0,86272.0,0.000117]
[1763998179099,0.001,86273.0,86272.0,0.012117]
[1763998179356,0.001,86273.0,86272.0,0.024117]
[1763998179784,0.01855,86298.0,86272.0,0.024117]
[1763998179995,0.02169776,86293.0,86277.0,0.09270902]
[1763998180234,0.34155,86298.0,86277.0,0.09270902]
[1763998180463,0.01233449,86294.0,86274.0,0.00744]
[1763998180714,0.323,86289.0,86274.0,0.00744]
[1763998180988,0.01762,86275.0,86272.0,0.001117]
[1763998181237,0.01762,86275.0,86272.0,0.000117]
[1763998181852,0.323,86283.0,86272.0,0.000117]
[1763998182053,0.03486,86288.0,86272.0,0.000117]
[1763998182236,0.41570902,86286.0,86272.0,0.000117]
[1763998182410,0.01762,86273.0,86272.0,0.000117]
[1763998182618,0.03992,86273.0,86272.0,0.000117]
[1763998182931,0.01762,86273.0,86272.0,0.000117]
[1763998183665,0.07641,86273.0,86272.0,0.001117]
[1763998185546,0.01762,86273.0,86272.0,0.001117]
[1763998185747,0.04186,86273.0,86272.0,0.001117]
[1763998185952,0.07641,86273.0,86272.0,0.001117]
[1763998186607,0.04186,86273.0,86272.0,0.001117]
[1763998187185,0.07641,86273.0,86272.0,0.001117]
[1763998187785,0.09811319,86273.0,86272.0,0.001117]
[1763998188330,0.09811319,86273.0,86272.0,0.000117]
[1763998188650,0.42111319,86273.0,86272.0,0.000117]
[1763998189511,2.47321568,86273.0,86272.0,0.000117]
[1763998190312,2.42111319,86273.0,86272.0,0.000117]
[1763998190557,2.42855319,86273.0,86272.0,0.000117]
[1763998192869,2.39400319,86273.0,86272.0,0.000117]
[1763998193085,0.39400319,86273.0,86272.0,0.000117]
[1763998193913,0.42661319,86273.0,86272.0,0.000117]
[1763998194866,2.47871568,86273.0,86272.0,0.000117]
[1763998197138,2.48957593,86273.0,86272.0,0.000117]
[1763998198531,2.49057593,86273.0,86272.0,0.000117]
[1763998199411,2.30227418,86273.0,86272.0,0.000117]
[1763998199610,2.32581418,86273.0,86272.0,0.000117]
[1763998200979,2.31495393,86273.0,86272.0,0.000117]
[1763998201207,2.31495393,86273.0,86250.0,0.46182]
[1763998201208,0.1223,86272.0,86250.0,0.46182]
[1763998201419,2.08535249,86251.0,86250.0,0.3175703]
[1763998201642,2.47664998,86251.0,86250.0,0.2724603]
[1763998201896,2.47664998,86251.0,86245.0,0.002179]
[1763998201897,0.06210249,86246.0,86245.0,0.002179]
[1763998202104,2.39634973,86246.0,86245.0,0.002179]
[1763998202313,2.42136864,86246.0,86245.0,0.002179]
[1763998202522,2.42136864,86246.0,86186.0,0.00744]
[1763998202523,0.05210249,86237.0,86189.0,0.01774]
[1763998202731,0.37510249,86229.0,86192.0,0.04706]
[1763998202936,0.323,86209.0,86193.0,0.05675374]
[1763998203139,0.323,86209.0,86194.0,0.09270902]
[1763998203353,0.59094042,86220.0,86195.0,0.0232032]
[1763998203559,0.01246575,86220.0,86195.0,0.0567532]
[1763998203796,0.60340617,86220.0,86195.0,0.03355]
[1763998204001,0.60340617,86220.0,86196.0,0.05655249]
[1763998204002,0.59094042,86220.0,86196.0,0.05655249]
[1763998204211,0.59094042,86210.0,86196.0,0.03355]
[1763998204433,0.59094042,86210.0,86195.0,0.00011704]
[1763998204642,0.323,86209.0,86195.0,0.00011704]
[1763998205023,0.323,86209.0,86196.0,0.03355]
[1763998205223,0.41439404,86209.0,86195.0,0.00011704]
[1763998205381,0.323,86209.0,86195.0,0.00011704]
[1763998205585,0.59094042,86205.0,86195.0,0.00011704]
[1763998206213,0.09270902,86203.0,86195.0,0.00011704]
[1763998206463,0.323,86204.0,86195.0,0.00011704]
[1763998206610,0.09270902,86203.0,86195.0,0.00011704]
[1763998207560,0.323,86202.0,86195.0,0.00011704]
[1763998207929,0.05210249,86201.0,86195.0,0.00011704]
[1763998208354,2.0,86200.0,86195.0,0.00011704]
[1763998208556,0.09270902,86203.0,86195.0,0.00011704]
[1763998208557,2.0,86196.0,86195.0,0.00011704]
[1763998208766,2.4977638,86196.0,86195.0,0.00011704]
[1763998208983,0.37510249,86190.0,86147.0,0.01774]
[1763998209202,0.37510249,86178.0,86140.0,0.0017]
[1763998209454,0.12266131,86196.0,86140.0,0.0017]
[1763998209455,0.37510249,86172.0,86170.0,0.00031705]
[1763998209649,2.46781151,86171.0,86170.0,0.00031705]
[1763998210240,2.58303282,86171.0,86170.0,0.00031705]
[1763998210371,2.46781151,86171.0,86170.0,0.00031705]
[1763998210581,2.42510249,86171.0,86170.0,0.00031705]
[1763998210800,2.38254249,86171.0,86170.0,0.00031705]
[1763998211199,0.00744,86178.0,86170.0,0.00031705]
[1763998211584,0.09270902,86174.0,86170.0,0.00031705]
[1763998211755,0.001,86171.0,86170.0,0.00031705]
[1763998211971,0.59094042,86180.0,86170.0,0.00031705]
[1763998212174,0.00744,86183.0,86173.0,0.02175]
[1763998213011,0.00744,86195.0,86182.0,0.02175]
[1763998213691,0.323,86188.0,86170.0,0.00131705]
[1763998213923,0.323,86179.0,86170.0,0.00131705]
[1763998214163,0.323,86179.0,86170.0,0.00031705]
[1763998214374,0.323,86179.0,86178.0,0.00214052]
[1763998214593,0.41439404,86179.0,86178.0,0.00214052]
[1763998214799,0.37510249,86179.0,86178.0,0.00214052]
[1763998214946,0.05210249,86179.0,86178.0,0.00214052]
[1763998215162,2.37510249,86179.0,86178.0,0.00214052]
[1763998215590,0.33044,86179.0,86178.0,0.00214052]
[1763998215992,0.323,86179.0,86178.0,0.00214052]
[1763998216709,2.323,86179.0,86178.0,0.00214052]
[1763998217025,0.323,86179.0,86178.0,0.00214052]
[1763998217427,0.323,86179.0,86178.0,0.02683052]
[1763998217654,0.323,86179.0,86178.0,0.00214052]
[1763998218055,0.323,86179.0,86178.0,0.00314052]
[1763998218216,0.323,86179.0,86178.0,0.00214052]
[1763998218427,0.00744,86189.0,86178.0,0.06356052]
[1763998218679,2.0,86198.0,86178.0,0.06142]
[1763998218811,2.0,86198.0,86188.0,0.00182083]
[1763998219012,0.59094042,86200.0,86179.0,0.03573]
[1763998219211,0.00744,86202.0,86179.0,0.03573]
[1763998219414,0.33044,86202.0,86179.0,0.03573]
[1763998219617,0.323,86199.0,86179.0,0.03573]
[1763998219817,0.59094042,86190.0,86178.0,0.001]
[1763998220020,0.323,86199.0,86178.0,0.001]
[1763998220218,0.323,86195.0,86170.0,0.03604705]
[1763998220419,0.323,86195.0,86171.0,0.02320966]
[1763998220653,0.323,86195.0,86178.0,0.001]
[1763998220852,0.323,86195.0,86171.0,0.02320966]
[1763998220853,0.323,86195.0,86172.0,0.03573]
[1763998221319,0.323,86195.0,86176.0,0.09270902]
[1763998221517,0.323,86199.0,86176.0,0.09270902]
[1763998221723,0.323,86199.0,86194.0,0.01782]
[1763998221927,0.323,86199.0,86198.0,0.02469]
[1763998222170,0.323,86199.0,86194.0,0.01782]
[1763998222407,0.09270902,86195.0,86184.0,0.01782]
[1763998222613,0.59094042,86194.0,86184.0,0.01782]
[1763998222816,0.323,86193.0,86184.0,0.01782]
[1763998222987,0.09270902,86189.0,86178.0,0.01782]
[1763998223194,0.09270902,86189.0,86184.0,0.00011705]
[1763998224005,0.09270902,86189.0,86184.0,0.00111705]
[1763998224544,0.323,86191.0,86184.0,0.00011705]
[1763998224689,0.09270902,86188.0,86184.0,0.00111705]
[1763998226391,0.323,86185.0,86184.0,0.00011705]
[1763998226596,2.39669752,86185.0,86184.0,0.00111705]
[1763998226795,2.39669752,86185.0,86184.0,0.00306575]
[1763998227082,2.39669752,86185.0,86184.0,0.00206575]
[1763998227413,2.39669752,86185.0,86184.0,0.00306575]
[1763998227610,0.02903503,86185.0,86184.0,0.00206575]
[1763998227812,0.02159503,86185.0,86184.0,0.00206575]
[1763998228012,0.323,86187.0,86184.0,0.00206575]
[1763998228013,0.02159503,86186.0,86184.0,0.00206575]
[1763998228242,0.02159503,86185.0,86184.0,0.00011705]
[1763998228500,0.02159503,86186.0,86184.0,0.00011705]
[1763998229090,0.02159503,86186.0,86185.0,0.06042]
[1763998229268,0.02159503,86192.0,86184.0,0.00011705]
[1763998229448,0.02159503,86191.0,86184.0,0.00011705]
[1763998229651,0.02159503,86190.0,86184.0,0.00011705]
[1763998229872,0.02159503,86189.0,86184.0,0.00011705]
[1763998230084,0.02159503,86188.0,86184.0,0.00011705]
[1763998230279,0.02159503,86187.0,86185.0,0.001]
[1763998230437,0.02159503,86186.0,86185.0,0.001]
[1763998230660,0.323,86193.0,86184.0,0.00011705]
[1763998230661,0.323,86190.0,86184.0,0.00011705]
[1763998230863,0.09270902,86185.0,86184.0,0.00111705]
[1763998231070,0.34459503,86185.0,86184.0,0.00111705]
[1763998231294,0.34459503,86185.0,86184.0,0.00011705]
[1763998232909,0.34459503,86185.0,86184.0,0.02480705]
[1763998233068,0.34459503,86185.0,86184.0,0.06153705]
[1763998233269,0.02159503,86185.0,86184.0,0.00011705]
[1763998233454,0.323,86191.0,86185.0,0.00191673]
[1763998233660,0.09270902,86186.0,86184.0,0.00011705]
[1763998233909,0.34469481,86185.0,86184.0,0.00011705]
[1763998234254,0.34469481,86185.0,86184.0,0.00306575]
[1763998234476,0.34469481,86185.0,86184.0,0.00206575]
[1763998234688,0.34469481,86185.0,86184.0,0.02675575]
[1763998234887,0.02169481,86185.0,86184.0,0.06248575]
[1763998235344,0.02169481,86185.0,86184.0,0.02675575]
[1763998235494,0.02169481,86185.0,86184.0,0.00206575]
[1763998235947,0.02169481,86185.0,86184.0,0.00306575]
[1763998236147,0.02169481,86185.0,86184.0,0.00206575]
[1763998236407,0.0217164,86185.0,86184.0,0.00206575]
[1763998236563,0.0217164,86185.0,86184.0,0.00306575]
[1763998237434,0.03257642,86185.0,86184.0,0.00306575]
[1763998237582,0.0217164,86185.0,86184.0,0.00306575]
[1763998238897,0.0217164,86185.0,86184.0,0.06248575]
[1763998239100,0.0217164,86185.0,86184.0,0.00306575]
[1763998239472,0.0217164,86185.0,86184.0,0.00206575]
[1763998239667,0.0217164,86185.0,86184.0,0.00306575]
[1763998239989,0.0217164,86185.0,86184.0,0.00206575]
[1763998240175,0.03257991,86185.0,86184.0,0.00206575]
[1763998240374,0.03257991,86185.0,86184.0,0.00306575]
[1763998240768,0.03258774,86185.0,86184.0,0.00306575]
[1763998241645,0.0217164,86185.0,86184.0,0.00306575]
[1763998242075,0.0217164,86185.0,86184.0,0.00206575]
[1763998243095,0.0217164,86185.0,86184.0,0.02775575]
[1763998243327,0.0217164,86185.0,86184.0,0.06348575]
[1763998244051,0.0217164,86185.0,86184.0,0.00306575]
[1763998245024,0.09270902,86216.0,86184.0,0.05930575]
[1763998245241,0.04350475,86227.0,86184.0,0.05930575]
[1763998245242,2.0,86226.0,86214.0,0.01668]
[1763998245469,0.0345,86224.0,86215.0,0.02274]
[1763998245696,0.01230435,86227.0,86215.0,0.02274]
[1763998245897,0.01087061,86226.0,86214.0,0.01668]
[1763998246106,0.01087061,86225.0,86214.0,0.01668]
[1763998246310,0.323,86228.0,86214.0,0.01668]
[1763998246468,0.00011688,86225.0,86214.0,0.01668]
[1763998246668,0.01086334,86224.0,86214.0,0.01668]
[1763998246869,0.00011688,86225.0,86215.0,0.001]
[1763998247316,0.323,86223.0,86215.0,0.001]
[1763998247614,0.323,86219.0,86215.0,0.001]
[1763998247835,0.01820297,86246.0,86215.0,0.001]
[1763998248044,0.01085841,86228.0,86215.0,0.00111688]
[1763998248277,2.01085841,86227.0,86215.0,0.00011688]
[1763998248455,2.09270902,86216.0,86215.0,0.00011688]
[1763998249452,2.15225151,86216.0,86215.0,0.00011688]
[1763998249641,2.16310709,86216.0,86215.0,0.00011688]
[1763998249863,2.48610709,86216.0,86215.0,0.00011688]
[1763998250460,2.48610709,86216.0,86215.0,0.00107491]
[1763998251564,2.6013284,86216.0,86215.0,0.00107491]
[1763998251701,2.48610709,86216.0,86215.0,0.00107491]
[1763998253929,2.4265646,86216.0,86215.0,0.00107491]
[1763998254454,2.0,86216.0,86215.0,0.00107491]
[1763998255274,0.00744,86217.0,86215.0,0.00107491]
[1763998255478,0.09270902,86216.0,86215.0,0.00011688]
[1763998255681,0.09270902,86216.0,86215.0,0.00111688]
[1763998256040,0.41570902,86216.0,86215.0,0.00011688]
[1763998256250,0.41570902,86216.0,86215.0,0.00111688]
[1763998256649,0.323,86216.0,86215.0,0.00111688]
[1763998257049,0.112709,86250.0,86215.0,0.00111688]
[1763998257050,0.03339,86227.0,86215.0,0.00111688]
[1763998257292,0.323,86222.0,86215.0,0.00111688]
[1763998258112,0.323,86222.0,86221.0,0.01626]
[1763998258262,0.323,86228.0,86221.0,0.01626]
[1763998258498,0.01201596,86229.0,86221.0,0.01626]
[1763998258725,0.00744,86230.0,86221.0,0.01626]
[1763998259099,0.01974701,86230.0,86221.0,0.01626]
[1763998259482,0.01974701,86230.0,86221.0,0.01726]
[1763998259899,0.01974701,86230.0,86221.0,0.01626]
[1763998260310,1.31584299,86231.0,86221.0,0.01626]
[1763998260499,2.0,86254.0,86230.0,0.02383]
[1763998260690,0.01239169,86238.0,86222.0,0.03339]
[1763998260934,0.09270902,86230.0,86216.0,0.01718609]
[1763998261115,0.323,86231.0,86216.0,0.01718609]
[1763998261357,0.323,86231.0,86230.0,0.02383]
[1763998261830,0.01820104,86246.0,86230.0,0.05722]
[1763998262082,0.5,86255.0,86241.0,0.01626]
[1763998262276,0.99284299,86250.0,86241.0,0.01626]
[1763998262658,0.323,86248.0,86241.0,0.01626]
[1763998263279,0.0003903,86248.0,86247.0,0.02383]
[1763998263495,0.0004,86280.0,86247.0,0.02383]
[1763998263496,0.03486436,86269.0,86247.0,0.05722]
[1763998263638,0.03498143,86269.0,86268.0,0.02383]
[1763998263850,0.00011707,86269.0,86268.0,0.02383]
[1763998264053,0.00011707,86269.0,86268.0,0.07348]
[1763998264483,0.00011707,86269.0,86268.0,0.01626]
[1763998265071,0.7849523,86280.0,86268.0,0.07348]
[1763998265260,0.10014902,86284.0,86268.0,0.04009]
[1763998265523,0.10014902,86284.0,86269.0,0.03339]
[1763998265524,0.323,86282.0,86269.0,0.03339]
[1763998265728,0.323,86282.0,86268.0,0.04009]
[1763998265872,0.323,86282.0,86281.0,0.01626]
[1763998266096,2.0,86283.0,86281.0,0.01626]
[1763998266302,0.323,86282.0,86281.0,0.01626]
[1763998266509,0.0004,86290.0,86282.0,0.05722]
[1763998266687,0.0004,86290.0,86289.0,0.02383]
[1763998267085,0.0004,86290.0,86289.0,0.05722]
[1763998267306,0.01819318,86312.0,86289.0,0.05722]
[1763998267510,0.01819318,86312.0,86297.0,0.11653902]
[1763998267721,0.01819318,86312.0,86311.0,0.02383]
[1763998267923,0.0004,86320.0,86311.0,0.02383]
[1763998268179,0.0004,86320.0,86319.0,0.02383]
[1763998268386,1.00028299,86340.0,86319.0,0.02383]
[1763998268387,0.00744,86340.0,86319.0,0.02383]
[1763998268557,2.00783016,86340.0,86339.0,0.01626]
[1763998268766,0.323,86339.0,86331.0,0.01626]
[1763998268918,2.0,86339.0,86331.0,0.01626]
[1763998269121,2.0,86339.0,86331.0,0.04965]
[1763998269373,2.0,86339.0,86338.0,0.02383]
[1763998269568,0.00039016,86340.0,86338.0,0.02383]
[1763998269899,0.00039016,86340.0,86339.0,0.05722]
[1763998270443,0.99284299,86350.0,86339.0,0.02383]
[1763998270644,0.99295994,86350.0,86339.0,0.02383]
[1763998270855,0.00011695,86350.0,86339.0,0.02383]
[1763998271057,0.00011695,86350.0,86339.0,0.05722]
[1763998271665,0.00011695,86350.0,86349.0,0.02383]
[1763998272274,0.00011695,86350.0,86349.0,0.05722]
[1763998272492,0.0004,86380.0,86349.0,0.06466]
[1763998272720,0.00051688,86380.0,86353.0,0.09270902]
[1763998272935,2.0,86379.0,86353.0,0.09270902]
[1763998273168,0.00051688,86380.0,86353.0,0.09270902]
[1763998273169,0.323,86374.0,86354.0,0.03339]
[1763998273381,0.323,86374.0,86355.0,0.09270902]
[1763998273651,0.99335987,86380.0,86355.0,0.09270902]
[1763998273861,0.323,86378.0,86355.0,0.09270902]
[1763998274073,0.323,86374.0,86356.0,0.03438]
[1763998274296,0.09270902,86373.0,86356.0,0.03438]
[1763998274500,0.09270902,86373.0,86357.0,0.00744]
[1763998274728,0.323,86374.0,86357.0,0.00744]
[1763998274927,0.323,86374.0,86358.0,0.12708902]
[1763998275043,0.33513367,86374.0,86358.0,0.12708902]
[1763998275246,0.00051688,86380.0,86359.0,0.03438]
[1763998275669,0.00197583,86360.0,86359.0,0.03438]
[1763998276044,0.00197583,86360.0,86359.0,0.0586]
[1763998277049,0.00197583,86360.0,86359.0,0.06604]
[1763998277217,0.00197583,86360.0,86359.0,0.15874902]
[1763998278030,0.00197583,86360.0,86359.0,0.06804]
[1763998278349,0.00197583,86360.0,86359.0,0.06604]
[1763998278488,0.00197583,86360.0,86359.0,0.06804]
[1763998278689,0.00197583,86360.0,86359.0,0.06604]
[1763998278977,0.00197583,86360.0,86359.0,0.02422]
[1763998279157,0.00197583,86360.0,86359.0,0.0606]
[1763998279297,0.323,86389.0,86359.0,0.0606]
[1763998279494,0.01206518,86383.0,86379.0,0.04241]
[1763998280048,0.323,86389.0,86379.0,0.01819]
[1763998280049,2.0,86389.0,86379.0,0.01819]
[1763998280260,0.09270902,86386.0,86379.0,0.01819]
[1763998280638,0.09270902,86386.0,86379.0,0.01919]
[1763998280842,0.09270902,86385.0,86379.0,0.001]
[1763998281041,0.09270902,86385.0,86372.0,0.01819]
[1763998281519,0.99284299,86382.0,86372.0,0.01819]
[1763998281639,2.0,86381.0,86355.0,0.00744]
[1763998281847,0.323,86378.0,86355.0,0.04193688]
[1763998282069,0.09270902,86359.0,86355.0,0.00011688]
[1763998282448,2.323,86356.0,86355.0,0.00011688]
[1763998282801,2.4903238,86356.0,86355.0,0.00011688]
[1763998283183,2.37510249,86356.0,86355.0,0.00011688]
[1763998284247,2.323,86356.0,86355.0,0.00011688]
[1763998284456,0.323,86356.0,86355.0,0.00011688]
[1763998285006,2.0,86371.0,86355.0,0.05871688]
[1763998285212,2.0,86371.0,86355.0,0.02533688]
[1763998285420,0.323,86368.0,86355.0,0.02533688]
[1763998285613,0.323,86366.0,86355.0,0.02533688]
[1763998286393,0.09270902,86359.0,86355.0,0.00111688]
[1763998286631,0.323,86364.0,86355.0,0.00011688]
[1763998286962,0.323,86364.0,86363.0,0.01819]
[1763998287177,0.323,86364.0,86363.0,0.04241]
[1763998287398,0.323,86364.0,86363.0,0.01819]
[1763998287621,0.323,86370.0,86355.0,0.00011688]